bitfinex-derivatives/quotes_BTCF0:USTF0_20251215
["timestamp","ask_amount","ask_price","bid_price","bid_amount"]
[1765797303255,0.02724348,89845.0,89844.0,0.0111306]
[1765797303450,0.20724348,89845.0,89844.0,0.7062506]
[1765797303859,0.08724348,89845.0,89844.0,0.7062506]
[1765797304361,0.22724348,89845.0,89844.0,0.0111306]
[1765797305663,0.22724348,89845.0,89844.0,0.0131306]
[1765797305963,0.22724348,89845.0,89844.0,0.0111306]
[1765797312274,0.23837398,89845.0,89844.0,0.0111306]
[1765797312959,0.23837398,89845.0,89843.0,0.41844]
[1765797313165,0.2111305,89845.0,89843.0,0.41844]
[1765797313361,0.2111305,89845.0,89843.0,0.4295706]
[1765797315073,0.02709195,89844.0,89843.0,0.4295706]
[1765797315272,0.22709195,89844.0,89843.0,0.4295706]
[1765797316262,0.22809195,89844.0,89843.0,0.4295706]
[1765797317664,0.22709195,89844.0,89843.0,0.4295706]
[1765797320276,0.22709195,89844.0,89843.0,0.4305706]
[1765797321578,0.22709195,89844.0,89843.0,0.4295706]
[1765797321876,0.22709195,89844.0,89843.0,0.4305706]
[1765797322578,0.22709195,89844.0,89843.0,0.4315706]
[1765797322872,0.22709195,89844.0,89843.0,0.4305706]
[1765797323076,0.22709195,89844.0,89843.0,0.4315706]
[1765797324475,0.22709195,89844.0,89843.0,0.4305706]
[1765797324773,0.22709195,89844.0,89843.0,0.4315706]
[1765797325078,0.22709195,89844.0,89843.0,0.4305706]
[1765797325281,0.22709195,89844.0,89843.0,0.4315706]
[1765797339785,0.22714292,89844.0,89843.0,0.4315706]
[1765797342487,0.22594697,89844.0,89843.0,0.4315706]
[1765797372097,0.22594697,89844.0,89843.0,0.69692]
[1765797372302,0.22594697,89844.0,89843.0,0.7080507]
[1765797373199,0.22594697,89844.0,89843.0,0.69692]
[1765797375802,0.22594697,89844.0,89843.0,2.19692]
[1765797380198,0.22594697,89844.0,89843.0,0.69692]
[1765797380801,0.22594697,89844.0,89843.0,2.19692]
[1765797382308,0.22594697,89844.0,89843.0,0.69692]
[1765797383298,0.0111324,89829.0,89818.0,0.00222674]
[1765797383505,0.24827532,89829.0,89823.0,0.0111331]
[1765797383904,0.24827532,89829.0,89824.0,1.5]
[1765797384305,0.24827532,89829.0,89825.0,0.0111329]
[1765797384507,0.24827532,89829.0,89828.0,0.0031669]
[1765797385208,0.24827532,89829.0,89828.0,0.0071669]
[1765797392015,0.0111332,89823.0,89822.0,0.69516]
[1765797392312,0.0111332,89823.0,89822.0,0.67650755]
[1765797392313,0.24827612,89823.0,89822.0,0.67650755]
[1765797393416,0.24827612,89823.0,89822.0,0.68050755]
[1765797393921,0.24827612,89823.0,89822.0,0.68350755]
[1765797397723,0.23714292,89823.0,89822.0,0.68350755]
[1765797404320,0.21,89823.0,89822.0,0.68350755]
[1765797410246,0.23708343,89823.0,89822.0,0.68350755]
[1765797413437,0.21,89823.0,89822.0,0.68350755]
[1765797413641,0.1828976,89823.0,89822.0,0.68350755]
[1765797414036,0.0111306,89844.0,89822.0,0.68350755]
[1765797414251,0.02708608,89843.0,89842.0,0.0111308]
[1765797414543,0.21708608,89843.0,89842.0,0.7064108]
[1765797418539,0.22821678,89843.0,89842.0,0.7064108]
[1765797418953,0.21708608,89843.0,89842.0,0.7064108]
[1765797437568,0.21709259,89843.0,89842.0,0.7064108]
[1765797438654,0.21709259,89843.0,89842.0,0.69528]
[1765797440161,0.21709259,89843.0,89836.0,0.0111315]
[1765797440358,0.0111317,89835.0,89834.0,0.0001669]
[1765797440565,0.1911317,89835.0,89834.0,0.0001669]
[1765797440763,0.21822429,89835.0,89834.0,0.0001669]
[1765797441569,0.21822429,89835.0,89834.0,0.0011669]
[1765797442169,0.21822429,89835.0,89834.0,0.0021669]
[1765797451272,0.21822429,89835.0,89816.0,0.011134]
[1765797451273,0.0111336,89822.0,89821.0,0.0111328]
[1765797451480,0.1911336,89822.0,89821.0,0.0111328]
[1765797451771,0.20709259,89822.0,89821.0,0.0111328]
[1765797453378,0.20709259,89822.0,89821.0,0.0141328]
[1765797453580,0.20709259,89822.0,89821.0,0.0171328]
[1765797463384,0.20709259,89822.0,89821.0,0.3779328]
[1765797469191,0.20709259,89822.0,89821.0,0.3668]
[1765797471591,0.20709259,89822.0,89821.0,1.06192]
[1765797471891,0.20709259,89822.0,89821.0,0.70112]
[1765797476891,0.20710114,89822.0,89821.0,1.06192]
[1765797478077,0.18,89822.0,89821.0,1.06192]
[1765797478992,0.18,89822.0,89821.0,1.0730534]
[1765797480487,0.20710263,89822.0,89821.0,1.0730534]
[1765797485994,0.20710263,89822.0,89821.0,0.3779334]
[1765797486203,0.20710263,89822.0,89821.0,1.0730934]
[1765797487596,0.00358884,89822.0,89821.0,1.0730934]
[1765797487800,0.07098534,89837.0,89836.0,0.0111316]
[1765797488098,0.19,89837.0,89836.0,0.7063716]
[1765797489097,0.19,89837.0,89836.0,0.7073716]
[1765797493204,0.3609669,89846.0,89845.0,0.0111305]
[1765797493396,0.3809669,89846.0,89845.0,0.7063705]
[1765797493597,0.5709669,89846.0,89845.0,0.7063705]
[1765797494404,0.5719669,89846.0,89845.0,0.7063705]
[1765797499290,0.5719669,89846.0,89845.0,0.69524]
[1765797499497,0.5719669,89846.0,89845.0,0.6664]
[1765797499806,0.23810613,89846.0,89845.0,0.6664]
[1765797502907,0.23810613,89846.0,89845.0,0.6775305]
[1765797506214,0.24923643,89846.0,89845.0,0.6775305]
[1765797509916,0.24923643,89846.0,89845.0,1.0383305]
[1765797512018,0.24923643,89846.0,89845.0,2.5383305]
[1765797515020,0.24923643,89846.0,89845.0,2.1775305]
[1765797515321,0.24923643,89846.0,89845.0,2.5383305]
[1765797516314,0.23810613,89846.0,89845.0,2.5383305]
[1765797519224,0.29795997,89846.0,89845.0,2.5383305]
[1765797520825,0.29695997,89846.0,89845.0,2.5383305]
[1765797529228,0.30809027,89846.0,89845.0,2.5383305]
[1765797529730,0.29695997,89846.0,89845.0,2.5383305]
[1765797531031,0.23710613,89846.0,89845.0,2.5383305]
[1765797532129,0.23710613,89846.0,89845.0,2.5393305]
[1765797532718,0.23710613,89846.0,89845.0,2.5383305]
[1765797533927,0.23810613,89846.0,89845.0,2.5383305]
[1765797534523,0.23710613,89846.0,89845.0,2.5383305]
[1765797534725,0.23810613,89846.0,89845.0,2.5383305]
[1765797536029,0.23710613,89846.0,89845.0,2.5383305]
[1765797536236,0.23810613,89846.0,89845.0,2.5383305]
[1765797536939,0.23710613,89846.0,89845.0,2.5383305]
[1765797538431,0.02710613,89846.0,89845.0,2.5383305]
[1765797539033,0.21710613,89846.0,89845.0,2.5383305]
[1765797540633,0.21810613,89846.0,89845.0,2.5383305]
[1765797542043,0.23710613,89846.0,89845.0,2.5383305]
[1765797542342,0.23810613,89846.0,89845.0,2.5383305]
[1765797542844,0.23710613,89846.0,89845.0,2.5383305]
[1765797543044,0.23810613,89846.0,89845.0,2.5383305]
[1765797543244,0.23910613,89846.0,89845.0,2.5383305]
[1765797543643,0.23810613,89846.0,89845.0,2.1775305]
[1765797543845,0.23910613,89846.0,89845.0,2.1775305]
[1765797546038,0.23810613,89846.0,89845.0,2.1775305]
[1765797547946,0.23710613,89846.0,89845.0,2.1775305]
[1765797550245,0.24823643,89846.0,89845.0,2.1775305]
[1765797552143,0.23710613,89846.0,89845.0,2.1775305]
[1765797559149,0.24823643,89846.0,89845.0,2.1775305]
[1765797559751,0.23710613,89846.0,89845.0,2.1775305]
[1765797560346,0.23710613,89846.0,89845.0,2.1785305]
[1765797560944,0.23710613,89846.0,89845.0,2.1775305]
[1765797561145,0.23710613,89846.0,89845.0,2.1785305]
[1765797586266,0.24823643,89846.0,89845.0,2.5393305]
[1765797587168,0.24823643,89846.0,89845.0,2.1785305]
[1765797597672,0.60903643,89846.0,89845.0,0.001]
[1765797597978,0.0111312,89839.0,89838.0,0.0111313]
[1765797598177,0.1911312,89839.0,89838.0,1.8986913]
[1765797598379,0.21807043,89839.0,89838.0,1.8986913]
[1765797599969,0.21807043,89839.0,89838.0,1.9006913]
[1765797600478,0.20693923,89839.0,89838.0,1.9006913]
[1765797600680,0.20639106,89839.0,89838.0,1.9006913]
[1765797601774,0.20648361,89839.0,89838.0,1.9006913]
[1765797601976,0.20648345,89839.0,89838.0,1.9006913]
[1765797605071,0.20648345,89839.0,89838.0,2.2614913]
[1765797615081,0.18,89839.0,89838.0,2.2614913]
[1765797615282,0.20649971,89839.0,89838.0,2.2614913]
[1765797625995,0.20649971,89839.0,89838.0,1.9006913]
[1765797626188,0.20649971,89839.0,89838.0,2.2614913]
[1765797634204,0.20649971,89839.0,89838.0,1.9006913]
[1765797634506,0.20649971,89839.0,89838.0,2.2614913]
[1765797653506,0.20649971,89839.0,89838.0,1.9006913]
[1765797653811,0.20649971,89839.0,89838.0,2.2614913]
[1765797668219,0.20649428,89839.0,89838.0,2.2614913]
[1765797680029,0.20649428,89839.0,89838.0,1.9006913]
[1765797680230,0.20649428,89839.0,89838.0,2.2614913]
[1765797697657,0.20649428,89839.0,89838.0,1.8739313]
[1765797697864,0.20649428,89839.0,89838.0,2.5687713]
[1765797699465,0.20642315,89839.0,89838.0,2.5687713]
[1765797711581,0.20642315,89839.0,89838.0,2.2079713]
[1765797717186,0.20642315,89839.0,89838.0,2.19684]
[1765797723481,0.20642315,89839.0,89838.0,2.2079713]
[1765797723681,0.20642315,89839.0,89838.0,2.19684]
[1765797724991,0.09642315,89839.0,89838.0,2.2079713]
[1765797725287,0.18642315,89839.0,89838.0,2.2079713]
[1765797727690,0.0001669,89846.0,89845.0,0.0111305]
[1765797727891,0.2101669,89846.0,89845.0,1.0668105]
[1765797728590,0.2101669,89846.0,89845.0,2.5668105]
[1765797729089,0.0599565,89862.0,89857.0,0.011129]
[1765797729290,0.0599565,89862.0,89845.0,2.5668105]
[1765797729291,0.21,89862.0,89859.0,0.0111287]
[1765797729987,0.0111285,89861.0,89858.0,0.69488]
[1765797730191,0.1911285,89861.0,89858.0,0.7060087]
[1765797730390,0.1911285,89861.0,89858.0,0.69488]
[1765797730688,0.1911285,89861.0,89859.0,0.0111287]
[1765797730689,0.251085,89861.0,89859.0,0.0111287]
[1765797730987,0.1911285,89861.0,89859.0,0.0111287]
[1765797731688,0.1911285,89861.0,89858.0,0.69488]
[1765797731887,0.1911285,89861.0,89859.0,0.0111287]
[1765797739692,0.02634601,89860.0,89859.0,0.0111287]
[1765797739998,0.20634601,89860.0,89859.0,0.0111287]
[1765797743605,0.0111295,89853.0,89852.0,0.0001669]
[1765797743810,0.1911295,89853.0,89852.0,0.6949269]
[1765797744110,0.21747551,89853.0,89852.0,0.6949269]
[1765797744806,0.21747551,89853.0,89852.0,0.6959269]
[1765797745104,0.21747551,89853.0,89852.0,0.6969269]
[1765797754302,0.27743201,89853.0,89852.0,0.6969269]
[1765797754602,0.21747551,89853.0,89852.0,0.6969269]
[1765797756603,0.27743201,89853.0,89852.0,0.6969269]
[1765797758001,0.63823201,89853.0,89852.0,0.6969269]
[1765797762210,0.57827551,89853.0,89852.0,0.6969269]
[1765797762917,0.63823201,89853.0,89852.0,0.6969269]
[1765797763311,0.57827551,89853.0,89852.0,0.6969269]
[1765797766319,0.63823201,89853.0,89852.0,0.6969269]
[1765797766522,0.57827551,89853.0,89852.0,0.6969269]
[1765797766720,0.63823201,89853.0,89852.0,0.6969269]
[1765797767016,0.57827551,89853.0,89852.0,0.6969269]
[1765797767218,0.63823201,89853.0,89852.0,0.6969269]
[1765797768829,0.611886,89853.0,89852.0,0.6969269]
[1765797769027,0.63809067,89853.0,89852.0,0.6969269]
[1765797769319,0.57813417,89853.0,89852.0,0.6969269]
[1765797779229,0.65793929,89853.0,89852.0,0.6969269]
[1765797780335,0.57813417,89853.0,89852.0,0.6969269]
[1765797796847,0.57813249,89853.0,89852.0,0.6969269]
[1765797798556,0.21733249,89853.0,89852.0,0.6969269]
[1765797798760,0.57813249,89853.0,89852.0,0.6969269]
[1765797800958,0.21733249,89853.0,89852.0,0.6969269]
[1765797801162,0.57813249,89853.0,89852.0,0.6969269]
[1765797836485,0.57810733,89853.0,89852.0,0.6969269]
[1765797844192,0.57810733,89853.0,89852.0,0.0021669]
[1765797850196,0.21730733,89853.0,89852.0,0.0021669]
[1765797850496,0.57810733,89853.0,89852.0,0.0021669]
[1765797854201,0.21730733,89853.0,89852.0,0.0021669]
[1765797854403,0.57810733,89853.0,89852.0,0.0021669]
[1765797855903,0.21730733,89853.0,89852.0,0.0021669]
[1765797856101,0.57810733,89853.0,89852.0,0.0021669]
[1765797857810,0.57817067,89853.0,89852.0,0.0021669]
[1765797860404,0.65833527,89853.0,89852.0,0.0021669]
[1765797864903,0.29753527,89853.0,89852.0,0.0021669]
[1765797865108,0.65833527,89853.0,89852.0,0.0021669]
[1765797870410,0.57817067,89853.0,89852.0,0.0021669]
[1765797875915,0.21737067,89853.0,89852.0,0.0021669]
[1765797876117,0.57817067,89853.0,89852.0,0.0021669]
[1765797894633,0.21737067,89853.0,89852.0,0.0021669]
[1765797901645,0.57817067,89853.0,89852.0,0.0021669]
[1765797902844,0.5779702,89853.0,89852.0,0.0021669]
[1765797906047,0.2171702,89853.0,89852.0,0.0021669]
[1765797906248,0.5779702,89853.0,89852.0,0.0021669]
[1765797906546,0.2171702,89853.0,89852.0,0.0021669]
[1765797906747,0.5779702,89853.0,89852.0,0.0021669]
[1765797908853,0.2171702,89853.0,89852.0,0.0021669]
[1765797909044,0.5779702,89853.0,89852.0,0.0021669]
[1765797928068,0.2171702,89853.0,89852.0,0.0021669]
[1765797945695,0.2171702,89853.0,89852.0,0.0132965]
[1765797948596,0.2171702,89853.0,89852.0,0.0021669]
[1765797953899,0.2171702,89853.0,89852.0,0.0132965]
[1765797954202,0.2171702,89853.0,89852.0,0.0021669]
[1765797958109,0.2171447,89853.0,89852.0,0.0021669]
[1765797960509,0.29730704,89853.0,89852.0,0.0021669]
[1765797970416,0.2171447,89853.0,89852.0,0.0021669]
[1765797976723,0.2171447,89853.0,89852.0,0.0021669]
[1765798000444,0.29730704,89853.0,89852.0,0.0021669]
[1765798001935,0.2171447,89853.0,89852.0,0.0021669]
[1765798002448,0.29730704,89853.0,89852.0,0.0021669]
[1765798010443,0.2171447,89853.0,89852.0,0.0021669]
[1765798053569,0.29730834,89853.0,89852.0,0.0021669]
[1765798060569,0.2171447,89853.0,89852.0,0.0021669]
[1765798063061,0.2271447,89853.0,89852.0,0.0021669]
[1765798072980,0.28726606,89853.0,89852.0,0.0021669]
[1765798074085,0.2271447,89853.0,89852.0,0.0021669]
[1765798074679,0.28726606,89853.0,89852.0,0.0021669]
[1765798075385,0.2271447,89853.0,89852.0,0.0021669]
[1765798082095,0.2271447,89853.0,89852.0,0.0132965]
[1765798082292,0.2271447,89853.0,89852.0,0.0021669]
[1765798091591,0.30730834,89853.0,89852.0,0.0021669]
[1765798097099,0.2271447,89853.0,89852.0,0.0021669]
[1765798099201,0.30730834,89853.0,89852.0,0.0021669]
[1765798099393,0.2271447,89853.0,89852.0,0.0021669]
[1765798100106,0.30730834,89853.0,89852.0,0.0021669]
[1765798100501,0.2271447,89853.0,89852.0,0.0021669]
[1765798146160,0.30727996,89853.0,89852.0,0.0021669]
[1765798147461,0.2271447,89853.0,89852.0,0.0021669]
[1765798180685,0.30727996,89853.0,89852.0,0.0021669]
[1765798190804,0.2271447,89853.0,89852.0,0.0021669]
[1765798197203,0.5879447,89853.0,89852.0,0.0021669]
[1765798203207,0.2271447,89853.0,89852.0,0.0021669]
[1765798203413,0.5879447,89853.0,89852.0,0.0021669]
[1765798212118,0.2271447,89853.0,89852.0,0.0021669]
[1765798242756,0.5879447,89853.0,89852.0,0.0021669]
[1765798253878,0.2271447,89853.0,89852.0,0.0021669]
[1765798254171,0.58774782,89853.0,89852.0,0.0021669]
[1765798256072,0.22694782,89853.0,89852.0,0.0021669]
[1765798256369,0.58774782,89853.0,89852.0,0.0021669]
[1765798260968,0.58775338,89853.0,89852.0,0.0021669]
[1765798261177,0.57662388,89853.0,89852.0,0.0021669]
[1765798261368,0.21582388,89853.0,89852.0,0.0021669]
[1765798270284,0.21582388,89853.0,89852.0,0.6966869]
[1765798277091,0.21582388,89853.0,89852.0,0.7078165]
[1765798279493,0.21582388,89853.0,89852.0,0.6966869]
[1765798291005,0.21582388,89853.0,89852.0,0.0021669]
[1765798291203,0.21582388,89853.0,89852.0,0.6966469]
[1765798306722,0.21520171,89853.0,89852.0,0.6966469]
[1765798323836,0.21504271,89853.0,89852.0,0.6966469]
[1765798340045,0.21504271,89853.0,89852.0,2.1966469]
[1765798341652,0.21504271,89853.0,89852.0,0.0021669]
[1765798343557,0.21504271,89853.0,89819.0,0.0111336]
[1765798343558,0.0111316,89836.0,89829.0,0.07999565]
[1765798343857,0.02504271,89835.0,89834.0,0.0111318]
[1765798344056,0.02504271,89835.0,89834.0,2.2056518]
[1765798344057,0.23504271,89835.0,89834.0,2.2056518]
[1765798344656,0.23504271,89835.0,89834.0,2.2096518]
[1765798344950,0.23504271,89835.0,89834.0,2.2136518]
[1765798346958,0.23504271,89835.0,89834.0,2.2126518]
[1765798348062,0.23504271,89835.0,89834.0,2.5734518]
[1765798364364,0.24617441,89835.0,89834.0,2.5734518]
[1765798364564,0.24617441,89835.0,89834.0,2.2126518]
[1765798364768,0.24617441,89835.0,89834.0,2.5734518]
[1765798367175,0.24611896,89835.0,89834.0,2.5734518]
[1765798370078,0.23498726,89835.0,89834.0,2.5734518]
[1765798382572,0.0001669,89843.0,89842.0,0.0111308]
[1765798382767,0.1901669,89843.0,89842.0,1.0665308]
[1765798382981,0.21520322,89843.0,89842.0,1.0665308]
[1765798383482,0.21520322,89843.0,89842.0,2.5665308]
[1765798384778,0.21520322,89843.0,89842.0,2.5695308]
[1765798385180,0.21520322,89843.0,89842.0,2.5715308]
[1765798390979,0.0111285,89862.0,89861.0,0.0111285]
[1765798391187,0.1911285,89862.0,89861.0,0.7057285]
[1765798391371,0.21614615,89862.0,89861.0,0.7057285]
[1765798392381,0.21714615,89862.0,89861.0,0.7057285]
[1765798404698,0.21714615,89862.0,89861.0,0.6946]
[1765798410697,0.20601765,89862.0,89861.0,0.6946]
[1765798411101,0.20601765,89862.0,89861.0,1.0554]
[1765798413295,0.06601765,89862.0,89861.0,1.0554]
[1765798413707,0.06501765,89862.0,89861.0,1.0574]
[1765798413905,0.04,89862.0,89861.0,1.0594]
[1765798415306,0.04,89862.0,89861.0,1.0574]
[1765798415509,0.04,89862.0,89861.0,1.0594]
[1765798417505,0.04,89862.0,89861.0,1.0574]
[1765798417699,0.04,89862.0,89861.0,1.0594]
[1765798417897,0.04,89862.0,89861.0,1.0574]
[1765798418106,0.04,89862.0,89861.0,1.0584]
[1765798418512,0.04,89862.0,89861.0,1.0574]
[1765798418709,0.04,89862.0,89861.0,1.0584]
[1765798420408,0.04,89862.0,89861.0,1.0574]
[1765798422206,0.04,89862.0,89861.0,0.6966]
[1765798422412,0.04,89862.0,89861.0,1.4182]
[1765798426611,0.04,89862.0,89861.0,1.41808]
[1765798428216,0.04,89862.0,89861.0,1.41708]
[1765798429921,0.04,89862.0,89861.0,1.41608]
[1765798430122,0.04,89862.0,89861.0,1.41708]
[1765798435318,0.0111278,89867.0,89862.0,0.0111283]
[1765798435620,0.0111283,89864.0,89863.0,0.0111281]
[1765798435927,0.0111283,89864.0,89863.0,0.7055681]
[1765798435928,0.2111283,89864.0,89863.0,0.7055681]
[1765798436723,0.23606481,89864.0,89862.0,0.001]
[1765798436932,0.2111283,89864.0,89863.0,0.69444]
[1765798437117,0.23606546,89864.0,89863.0,0.69444]
[1765798438427,0.22493716,89864.0,89863.0,0.69444]
[1765798443418,0.22493716,89864.0,89863.0,0.69544]
[1765798444125,0.22593716,89864.0,89863.0,0.69544]
[1765798444628,0.22523808,89864.0,89863.0,1.05624]
[1765798445626,0.22423808,89864.0,89863.0,1.05524]
[1765798445831,0.22523808,89864.0,89863.0,1.05524]
[1765798446831,0.22423808,89864.0,89863.0,1.05524]
[1765798447625,0.22523808,89864.0,89863.0,1.05524]
[1765798448935,0.22423808,89864.0,89863.0,1.05524]
[1765798449124,0.22523808,89864.0,89863.0,1.05524]
[1765798449524,0.22423808,89864.0,89863.0,1.05524]
[1765798449730,0.22523808,89864.0,89863.0,1.05524]
[1765798450833,0.22456419,89864.0,89863.0,1.05524]
[1765798452535,0.22456419,89864.0,89863.0,0.3608]
[1765798452841,0.0111293,89854.0,89850.0,0.47588]
[1765798453028,0.20975633,89854.0,89850.0,0.47588]
[1765798453223,0.23469349,89854.0,89850.0,0.47588]
[1765798453838,0.23469349,89854.0,89850.0,0.4870098]
[1765798454222,0.23469349,89854.0,89852.0,0.0111295]
[1765798454738,0.23469349,89854.0,89850.0,0.47588]
[1765798455033,0.23469349,89854.0,89853.0,0.0011669]
[1765798455240,0.23469349,89854.0,89853.0,0.0021669]
[1765798467939,0.23469349,89854.0,89853.0,0.0132964]
[1765798468140,0.23469349,89854.0,89853.0,0.0021669]
[1765798471647,0.23469349,89854.0,89853.0,0.0132964]
[1765798472748,0.23469349,89854.0,89853.0,0.0021669]
[1765798479543,0.23469349,89854.0,89851.0,0.3608]
[1765798479544,0.0111296,89853.0,89851.0,0.356243]
[1765798479749,0.0111309,89844.0,89843.0,0.0111302]
[1765798479949,0.1811309,89844.0,89843.0,0.0111302]
[1765798480149,0.20606806,89844.0,89843.0,0.0111302]
[1765798481052,0.20606806,89844.0,89843.0,0.0131302]
[1765798481844,0.19493716,89844.0,89843.0,0.0131302]
[1765798482548,0.19493716,89844.0,89843.0,0.0161302]
[1765798493076,0.19493716,89844.0,89843.0,0.3769302]
[1765798495676,0.19493716,89844.0,89843.0,1.8769302]
[1765798507183,0.19480636,89844.0,89843.0,1.8769302]
[1765798559532,0.19456145,89844.0,89843.0,1.8769302]
[1765798577046,0.19470538,89844.0,89843.0,1.8769302]
[1765798599464,0.19470538,89844.0,89843.0,0.005]
[1765798601356,0.25469715,89844.0,89843.0,0.005]
[1765798602263,0.19470538,89844.0,89843.0,0.005]
[1765798604162,0.25469715,89844.0,89843.0,0.005]
[1765798604363,0.19470538,89844.0,89843.0,0.005]
[1765798610083,0.0111316,89836.0,89835.0,0.0001669]
[1765798610286,0.58701269,89836.0,89835.0,0.0001669]
[1765798610776,0.64693433,89836.0,89835.0,0.0001669]
[1765798610983,0.58701269,89836.0,89835.0,0.0001669]
[1765798611776,0.58701269,89836.0,89835.0,0.0061669]
[1765798612383,0.58701269,89836.0,89835.0,0.0051669]
[1765798629405,0.64693433,89836.0,89835.0,0.0051669]
[1765798632298,0.58701269,89836.0,89835.0,0.0051669]
[1765798653818,0.22621269,89836.0,89835.0,0.0051669]
[1765798654018,0.58701269,89836.0,89835.0,0.0051669]
[1765798655727,0.58701269,89836.0,89824.0,0.0111329]
[1765798655728,0.0111331,89825.0,89824.0,0.0111329]
[1765798655927,0.2111331,89825.0,89824.0,0.0111329]
[1765798656228,0.23621419,89825.0,89824.0,0.0111329]
[1765798657221,0.23621419,89825.0,89824.0,0.0141329]
[1765798657425,0.23621419,89825.0,89824.0,0.0171329]
[1765798673846,0.23621419,89825.0,89824.0,0.006]
[1765798688062,0.23621419,89825.0,89824.0,0.003]
[1765798688269,0.24021419,89825.0,89824.0,0.003]
[1765798688469,0.0111337,89819.0,89818.0,0.00222674]
[1765798688663,0.2011337,89819.0,89818.0,0.00222674]
[1765798688862,0.22621479,89819.0,89818.0,0.00222674]
[1765798689860,0.22921479,89819.0,89818.0,0.00222674]
[1765798691370,0.23121479,89819.0,89818.0,0.00222674]
[1765798705691,0.23154606,89819.0,89818.0,0.00222674]
[1765798708691,0.0111359,89801.0,89800.0,0.13098047]
[1765798708894,0.0111359,89801.0,89790.0,0.00013144]
[1765798708895,0.0111362,89800.0,89799.0,0.7061361]
[1765798709092,0.24654856,89800.0,89799.0,0.7061361]
[1765798710199,0.24654856,89800.0,89799.0,0.7071361]
[1765798711091,0.24654856,89800.0,89799.0,0.7081361]
[1765798712198,0.23541236,89800.0,89799.0,0.7081361]
[1765798712400,0.03,89800.0,89799.0,0.7081361]
[1765798712600,0.000167,89809.0,89808.0,0.011135]
[1765798712796,0.20577573,89809.0,89808.0,0.011135]
[1765798714005,0.20677573,89809.0,89808.0,0.011135]
[1765798714989,0.06677573,89809.0,89808.0,0.011135]
[1765798715188,0.21677573,89809.0,89808.0,0.011135]
[1765798716299,0.21577573,89809.0,89808.0,0.011135]
[1765798725706,0.21577573,89809.0,89805.0,0.7062153]
[1765798725908,0.02560873,89808.0,89805.0,0.7062153]
[1765798726309,0.21560873,89808.0,89805.0,0.0111353]
[1765798726612,0.02560873,89807.0,89805.0,0.0111353]
[1765798726810,0.21560873,89807.0,89805.0,0.0111353]
[1765798727005,0.02560873,89806.0,89805.0,0.0111353]
[1765798727206,0.24674443,89806.0,89805.0,0.0111353]
[1765798731720,0.23560873,89806.0,89805.0,0.0111353]
[1765798736930,0.21,89806.0,89805.0,0.0111353]
[1765798737131,0.23563759,89806.0,89805.0,0.0111353]
[1765798746537,0.0111354,89805.0,89804.0,0.66048]
[1765798746743,0.24677299,89805.0,89804.0,0.66048]
[1765798747339,0.0111357,89803.0,89802.0,0.0111357]
[1765798747538,0.2011357,89803.0,89802.0,0.0111357]
[1765798747844,0.22677329,89803.0,89802.0,0.0111357]
[1765798749236,0.22677329,89803.0,89802.0,0.0121357]
[1765798750439,0.22677329,89803.0,89802.0,0.0131357]
[1765798750943,0.22677329,89803.0,89802.0,0.002]
[1765798751746,0.21563759,89803.0,89802.0,0.002]
[1765798759649,0.22677329,89803.0,89802.0,0.002]
[1765798765860,0.22681553,89803.0,89802.0,0.002]
[1765798766054,0.011136,89800.0,89799.0,0.63336]
[1765798766359,0.21681583,89800.0,89799.0,0.63336]
[1765798767356,0.21681583,89800.0,89799.0,0.63636]
[1765798774562,0.21681583,89800.0,89799.0,0.003]
[1765798777058,0.0111371,89791.0,89790.0,0.00013144]
[1765798777264,0.2011371,89791.0,89790.0,0.00013144]
[1765798777476,0.22681693,89791.0,89790.0,0.00013144]
[1765798778668,0.22681693,89791.0,89790.0,0.00313144]
[1765798778870,0.22681693,89791.0,89790.0,0.00613144]
[1765798781369,0.21567983,89791.0,89790.0,0.00613144]
[1765798781763,0.21567983,89791.0,89790.0,0.00413144]
[1765798782962,0.21577757,89791.0,89790.0,0.00413144]
[1765798790876,0.0111385,89780.0,89778.0,0.42920643]
[1765798791076,0.2111385,89780.0,89778.0,0.42920643]
[1765798792168,0.2111385,89780.0,89778.0,0.43720643]
[1765798793079,0.2111385,89780.0,89778.0,0.02136643]
[1765798797178,0.0257483,89779.0,89778.0,0.02136643]
[1765798797377,0.2357483,89779.0,89778.0,0.02136643]
[1765798797568,0.2357483,89779.0,89778.0,0.01022773]
[1765798798078,0.2357483,89779.0,89778.0,0.02136653]
[1765798798284,0.2357483,89779.0,89778.0,0.01636653]
[1765798798472,0.2357483,89779.0,89778.0,0.02036653]
[1765798799182,0.2357483,89779.0,89778.0,0.01736653]
[1765798799382,0.2357483,89779.0,89778.0,0.02036653]
[1765798801673,0.2357483,89779.0,89765.0,0.0111399]
[1765798801674,0.0111405,89766.0,89765.0,0.0111399]
[1765798801880,0.20121856,89766.0,89765.0,0.0111399]
[1765798802871,0.20121856,89766.0,89765.0,0.006]
[1765798803073,0.2159526,89766.0,89765.0,0.01]
[1765798804291,0.21007806,89766.0,89765.0,0.01]
[1765798804479,0.21007806,89766.0,89765.0,0.006]
[1765798804674,0.21007806,89766.0,89765.0,0.008]
[1765798804880,0.21007806,89766.0,89765.0,0.002]
[1765798805187,0.21007806,89766.0,89765.0,0.006]
[1765798805493,0.04007806,89766.0,89765.0,0.006]
[1765798805681,0.04007806,89766.0,89765.0,0.002]
[1765798805881,0.04007806,89766.0,89765.0,0.004]
[1765798806987,0.20007806,89766.0,89765.0,0.004]
[1765798807186,0.20007806,89766.0,89765.0,0.305]
[1765798808079,0.20007806,89766.0,89765.0,0.004]
[1765798808275,0.20007806,89766.0,89765.0,0.69932]
[1765798811291,0.20007806,89766.0,89765.0,0.004]
[1765798811499,0.20007806,89766.0,89765.0,0.69932]
[1765798811791,0.19980746,89766.0,89765.0,0.69932]
[1765798812789,0.19986084,89766.0,89765.0,0.69932]
[1765798814087,0.19986084,89766.0,89765.0,0.7104604]
[1765798821798,0.21005338,89766.0,89765.0,0.7104604]
[1765798823689,0.21005338,89766.0,89765.0,1.0712604]
[1765798824290,0.21005338,89766.0,89765.0,0.3759404]
[1765798824700,0.21005338,89766.0,89765.0,0.9401004]
[1765798825106,0.23594413,89766.0,89765.0,0.9401004]
[1765798825404,0.20594413,89766.0,89765.0,0.9401004]
[1765798826502,0.18005338,89766.0,89765.0,0.9401004]
[1765798827211,0.20595227,89766.0,89765.0,0.9401004]
[1765798828906,0.21709247,89766.0,89765.0,1.0712604]
[1765798831214,0.21709247,89766.0,89765.0,1.06012]
[1765798831416,0.21709247,89766.0,89765.0,1.0712604]
[1765798833418,0.21709247,89766.0,89765.0,1.0713004]
[1765798834916,0.21709247,89766.0,89765.0,0.3648]
[1765798835113,0.21709247,89766.0,89765.0,0.57956]
[1765798835920,0.21709247,89766.0,89765.0,0.004]
[1765798836115,0.21709247,89766.0,89765.0,0.005]
[1765798837024,0.21709247,89766.0,89765.0,0.004]
[1765798837318,0.27697611,89766.0,89763.0,0.05]